[Event "12th WLC Weekend 2022"]
[Site "Eindhoven"]
[Date "2022.05.13"]
[Round "1.22"]
[White "Van de Put, Jeroen"]
[Black "Krenning, Jasper"]
[Result "1/2-1/2"]
[ECO "C45"]
[WhiteElo "1987"]
[BlackElo "1736"]
[Annotator "TA"]
[PlyCount "78"]
[EventDate "2022.05.13"]
[EventType "swiss"]
[EventCountry "NED"]
[SourceTitle "playchess.com"]
[Source "ChessBase"]
[SourceQuality "1"]
[TimeControl "5400+30"]

{[%evp 9,78,32,27,31,102,121,123,126,127,122,128,127,123,135,133,120,123,119,134,122,122,135,145,87,97,69,80,32,66,24,58,62,68,39,32,0,0,0,0,0,17,10,8,8,14,11,9,2,2,8,21,-20,0,0,0,0,0,0,0,0,0,0,0,0,0,0,0,0,0,0,0]} 1. e4 {[%emt 0:00:05]} e5 {[%emt 0:00:08]} 2. Nf3 {[%emt 0:00:07]} Nc6 {[%emt 0:00:17]} 3. d4 {[%emt 0:00:10]} exd4 {[%emt 0:00:29]} 4. Nxd4 {[%emt 0:00:07]} d5 {[%emt 0:01:05]} 5. Nxc6 {[%emt 0:14:03]} bxc6 {[%emt 0:00:18]} 6. Nc3 {[%emt 0:03:31][%cal Re4d5] C45: Scotch Game.} Bb4 {[%emt 0:09:02]} ({Black should try} 6... Nf6 $1 $14) 7. Qd4 $16 {[%emt 0:05:26][%csl LRb4,LRg7]} Bxc3+ {[%emt 0:02:53]} 8. Qxc3 {[%emt 0:00:10] White is better.} Qf6 {[%emt 0:00:18] [#]} 9. e5 $1 {[%emt 0:01:48]} Qe6 {[%emt 0:01:08]} 10. Be3 {[%emt 0:06:18] [#]} Ne7 $146 {[%emt 0:02:18]} ({Predecessor:} 10... f6 11. exf6 Nxf6 12. O-O-O O-O 13. f3 Nd7 14. Bd4 Rf7 15. Re1 Qd6 16. Re8+ Rf8 17. Rxf8+ Qxf8 {1-0 (41) Cajbel,M (2224)-Hanusek,S (2028) Mrzezyno 2011}) 11. O-O-O {[%emt 0:09:13]} O-O {[%emt 0:01:39]} 12. Bc5 {[%emt 0:01:34] White is more active.} Re8 {[%emt 0:00:27]} 13. f4 {[%emt 0:01:42]} a5 {[%emt 0:06:00]} 14. g3 {[%emt 0:13:07]} Ba6 {[%emt 0:04:10]} 15. Bg2 {[%emt 0:00:08]} Nc8 {[%emt 0:15:50]} 16. h4 {[%emt 0:12:37]} (16. Qxa5 $142 Nb6 17. Bxb6) 16... Be2 {[%emt 0:05:38]} 17. Rde1 {[%emt 0:01:55]} Bg4 {[%emt 0:00:16]} 18. Qd4 {[%emt 0:01:45]} (18. a4 $16) 18... h5 {[%emt 0:06:02]} 19. Rhf1 {[%emt 0:00:14]} Ne7 {[%emt 0:07:25]} 20. Bxe7 {[%emt 0:02:29]} Qxe7 {[%emt 0:02:19]} 21. f5 {[%emt 0:04:04]} Qb4 {[%emt 0:01:44]} 22. c3 {[%emt 0:04:16]} Qxd4 {[%emt 0:00:44] The position is equal.} 23. cxd4 {[%emt 0:00:02]} Rab8 {[%emt 0:00:43]} 24. Bf3 {[%emt 0:04:25]} Bxf3 {[%emt 0:05:52]} 25. Rxf3 $11 {[%emt 0:00:02][%mdl 4096] Endgame KRR-KRR} Rb4 {[%emt 0:01:45]} 26. Rf4 {[%emt 0:00:50]} Reb8 {[%emt 0:13:18]} 27. Re2 {[%emt 0:01:20]} c5 {[%emt 0:01:19]} 28. dxc5 {[%emt 0:07:13]} Rxf4 {[%emt 0:00:15]} 29. gxf4 {[%emt 0:00:01] KR-KR} Rb4 {[%emt 0:01:50]} 30. e6 {[%emt 0:03:35] [#] e7 is the strong threat.} fxe6 {[%emt 0:00:28]} 31. fxe6 {[%emt 0:00:04] Hoping for e7.} Kf8 {[%emt 0:00:22]} 32. Re5 {[%emt 0:00:17][%csl LRd5,LRh5]} c6 {[%emt 0:01:22]} 33. Rxh5 {[%emt 0:00:39]} Rxf4 {[%emt 0:02:32]} 34. Rh8+ {[%emt 0:01:54]} Ke7 {[%emt 0:00:26]} 35. Rc8 {[%emt 0:00:11]} Rc4+ {[%emt 0:00:53]} ({Don't do} 35... Kxe6 36. Rxc6+ Ke5 37. h5) 36. Kd2 {[%emt 0:00:04]} Rxc5 {[%emt 0:00:08]} 37. Rc7+ {[%emt 0:00:01]} Kxe6 {[%emt 0:00:35]} 38. Rxg7 {[%emt 0:00:07]} Rc4 {[%emt 0:04:17]} 39. h5 {[%emt 0:00:30]} Rh4 {[%emt 0:00:30] Weighted Error Value: White=0.10 (very precise) /Black=0.06 (flawless)} 1/2-1/2

[Event "12th WLC Weekend 2022"]
[Site "Eindhoven"]
[Date "2022.05.13"]
[Round "1.23"]
[White "Hubers, Daan"]
[Black "Faber, Hugo"]
[Result "1/2-1/2"]
[ECO "A00"]
[WhiteElo "1818"]
[BlackElo "2076"]
[Annotator "TA"]
[PlyCount "57"]
[EventDate "2022.05.13"]
[EventType "swiss"]
[EventCountry "NED"]
[SourceTitle "playchess.com"]
[Source "ChessBase"]
[SourceQuality "1"]
[TimeControl "5400+30"]

{[%evp 9,57,-30,-35,-35,-30,-25,-30,-34,-14,-12,-10,-14,-6,-10,-11,-40,-48,-39,-39,-64,-66,-70,-54,-54,32,26,33,29,27,30,28,18,12,13,19,9,22,1,7,6,8,10,13,0,0,0,0,0,0,0]} 1. b4 {[%emt 0:00:06]} d5 {[%emt 0:01:34]} 2. Bb2 {[%emt 0:00:31]} Bf5 {[%emt 0:01:12]} 3. e3 {[%emt 0:02:23]} Nf6 {[%emt 0:01:58]} 4. Bd3 {[%emt 0:08:54]} Bxd3 {[%emt 0:02:49]} 5. cxd3 {[%emt 0:00:56]} e6 {[%emt 0:05:58]} 6. a3 {[%emt 0:02:50] A00: Irregular Openings.} Nbd7 {[%emt 0:02:58] [#]} 7. d4 $146 {[%emt 0:04:19]} ({Predecessor:} 7. Nf3 a5 8. b5 Bd6 9. d4 O-O 10. O-O Ne4 11. d3 Ng5 12. Nbd2 Nxf3+ 13. Nxf3 {0-1 (52) Rios,J (1728)-Garcia Silveira,L (2044) Montevideo 2019}) 7... c6 {[%emt 0:02:40]} 8. Nc3 {[%emt 0:04:42] Black has an edge.} Bd6 {[%emt 0:03:57]} (8... a5 $5 {[%cal Ra5b4]}) 9. Nf3 {[%emt 0:03:23]} O-O {[%emt 0:04:29]} 10. O-O {[%emt 0:02:20]} Re8 {[%emt 0:05:18]} 11. d3 {[%emt 0:05:57]} e5 {[%emt 0:01:56]} 12. Re1 {[%emt 0:11:49]} e4 {[%emt 0:03:23]} 13. dxe4 {[%emt 0:03:04]} Nxe4 {[%emt 0:01:26]} 14. Nxe4 {[%emt 0:01:44]} dxe4 {[%emt 0:02:50]} 15. Nd2 {[%emt 0:01:10]} Re6 {[%emt 0:04:14]} 16. Nc4 {[%emt 0:05:58]} Bc7 {[%emt 0:11:06]} (16... Nf6 $15) 17. d5 $1 $14 {[%emt 0:05:13]} cxd5 {[%emt 0:05:56]} 18. Qxd5 {[%emt 0:00:19]} Ne5 {[%emt 0:06:27]} 19. Qxd8+ $1 {[%emt 0:04:48]} ({And not} 19. Qxe4 Nd3 20. Qd4 (20. Qxb7 Bxh2+ 21. Kf1 Rc8 $17) 20... Qxd4 21. Bxd4 Nxe1 22. Rxe1 Rc6 $17) 19... Rxd8 {[%emt 0:00:10]} 20. Nxe5 {[%emt 0:01:37]} Bxe5 {[%emt 0:00:10] The position is equal.} 21. Bxe5 {[%emt 0:05:11]} Rxe5 $11 {[%emt 0:00:24][%mdl 4096] Endgame KRR-KRR} 22. Rac1 {[%emt 0:01:56]} Kf8 {[%emt 0:01:01]} 23. Kf1 {[%emt 0:03:47]} Red5 {[%emt 0:00:47]} 24. Rc7 {[%emt 0:01:31]} R8d7 {[%emt 0:01:18]} 25. Rec1 {[%emt 0:03:04]} Ke7 {[%emt 0:00:45]} 26. Ke1 {[%emt 0:03:58]} f5 {[%emt 0:03:00]} 27. R1c5 {[%emt 0:04:41]} g6 {[%emt 0:00:29]} 28. Rxd5 {[%emt 0:01:20]} Rxc7 {[%emt 0:00:14]} 29. Kd2 {[%emt 0:00:21] Prevents Rc1.  Weighted Error Value: White=0.05 (flawless) /Black=0.12 (very precise)} 1/2-1/2

[Event "12th WLC Weekend 2022"]
[Site "Eindhoven"]
[Date "2022.05.13"]
[Round "1.24"]
[White "Cebula, Jerzy"]
[Black "Auwens, Michel"]
[Result "1/2-1/2"]
[ECO "B06"]
[WhiteElo "1994"]
[BlackElo "1791"]
[Annotator "TA"]
[PlyCount "93"]
[EventDate "2022.05.13"]
[EventType "swiss"]
[EventCountry "NED"]
[SourceTitle "playchess.com"]
[Source "ChessBase"]
[SourceQuality "1"]
[TimeControl "5400+30"]

{[%evp 9,93,44,77,42,67,50,61,8,14,0,0,0,0,0,0,0,0,22,41,33,38,43,28,10,0,0,0,0,4,0,0,0,0,-4,0,-29,-14,-8,-8,-34,-27,-18,33,32,35,13,34,54,59,32,71,77,83,74,69,79,89,87,95,18,25,7,8,11,13,0,0,0,0,0,8,0,1,-4,0,0,0,0,0,0,0,0,0,0,0,0]} 1. e4 {[%emt 0:00:12]} d6 {[%emt 0:00:02]} 2. d4 {[%emt 0:00:10]} g6 {[%emt 0:00:03]} 3. Nc3 {[%emt 0:00:18]} Bg7 {[%emt 0:00:04]} 4. f4 {[%emt 0:01:07]} c6 {[%emt 0:00:37]} 5. Nf3 {[%emt 0:00:23]} Qc7 {[%emt 0:00:28]} 6. h3 {[%emt 0:06:28] B06: Modern Defence.} Nd7 {[%emt 0:01:16] [#]} 7. a4 $146 {[%emt 0:06:23]} ({Predecessor:} 7. e5 dxe5 8. dxe5 Nb6 9. Be3 Nh6 10. Bd3 Be6 11. Qe2 Nf5 12. Bf2 Nd5 13. Nxd5 Bxd5 {1-0 (32) Sotolongo Lezcano,J (2042)-Salina Parra,L (2089) Pinar del Rio 2019}) 7... e5 {[%emt 0:03:41]} 8. fxe5 {[%emt 0:00:55] White is more active.} (8. Be3 $1 $14) 8... dxe5 $11 {[%emt 0:00:11]} 9. d5 {[%emt 0:01:17]} Ngf6 {[%emt 0:02:23][%cal Bg8f6,Bf6h5,Bh5f4,Bf4e6,Be6d4][%mdl 32]} 10. dxc6 {[%emt 0:02:40]} bxc6 {[%emt 0:00:18]} 11. Be3 {[%emt 0:01:49] Against Nc5} O-O {[%emt 0:00:50]} 12. Bc4 {[%emt 0:02:00]} Nh5 {[%emt 0:06:34]} 13. O-O {[%emt 0:00:43]} Ndf6 {[%emt 0:03:00]} 14. Qe1 {[%emt 0:05:23] Against Ng3} Nf4 {[%emt 0:05:56]} 15. Bc5 {[%emt 0:05:29]} Re8 {[%emt 0:03:23]} 16. Rd1 {[%emt 0:04:54] aiming for Bd6.} (16. Ng5 $5 {[%cal Rc4f7]} Ne6 17. Bxe6 Bxe6 18. Qh4 $14 (18. Nxe6 Rxe6 19. Rd1 Bf8 $11)) 16... Be6 {[%emt 0:08:03]} 17. Bxe6 {[%emt 0:04:26]} Nxe6 {[%emt 0:05:27]} 18. Bd6 {[%emt 0:03:04]} Qb6+ {[%emt 0:01:26]} 19. Qf2 {[%emt 0:02:46]} Qxf2+ {[%emt 0:06:46]} 20. Rxf2 {[%emt 0:00:16]} Nd7 {[%emt 0:04:29]} 21. b3 {[%emt 0:14:25]} Nd4 {[%emt 0:04:22]} 22. Ne1 {[%emt 0:08:19][%cal Bf3e1,Be1d3,Bd3c5][%mdl 32]} (22. Nxe5 Nxe5 23. Rxd4 Nf3+ 24. Rxf3 Bxd4+ 25. Kf1 Rac8) (22. Kf1) ({Not} 22. Nxe5 $2 Nxe5 23. Rxd4 Nf3+ $1 {[%mdl 512]} 24. Rxf3 Bxd4+ 25. Kf1 Rac8 $19) 22... Re6 {[%emt 0:09:54]} 23. Ba3 {[%emt 0:00:51]} Bh6 {[%emt 0:01:17] Threatens to win with ...Be3.} 24. Bc1 {[%emt 0:01:23] Inhibits Be3.} Bxc1 {[%emt 0:01:49]} 25. Rxc1 {[%emt 0:00:01]} Nf6 {[%emt 0:01:49]} ({Black should play} 25... Nc5 $11) 26. Nd3 $14 {[%emt 0:00:35]} Nd7 {[%emt 0:03:51] Against Nc5} 27. Rcf1 {[%emt 0:03:23]} f5 {[%emt 0:02:07]} 28. Rd1 {[%emt 0:00:40][%cal Od3e5]} Rd8 {[%emt 0:01:37]} 29. Rfd2 {[%emt 0:02:02][%cal Od3e5] Nxe5! is the strong threat.} Nf6 {[%emt 0:05:50]} 30. exf5 {[%emt 0:09:26]} Nxf5 {[%emt 0:00:51]} 31. Nc5 {[%emt 0:01:13]} Rxd2 {[%emt 0:02:44]} 32. Rxd2 {[%emt 0:00:13]} Rd6 {[%emt 0:00:20]} 33. Rxd6 {[%emt 0:00:06]} Nxd6 $16 {[%emt 0:00:08][%mdl 4096] Endgame [#] KNN-KNN} 34. Nd3 {[%emt 0:00:51]} (34. Na2 $1 $16 {[%cal Ra2b4]}) 34... Nd7 $11 {[%emt 0:01:15]} 35. Kf1 {[%emt 0:00:53]} Kf7 {[%emt 0:00:11] The position is equal.} 36. Ke2 {[%emt 0:00:04]} Ke6 {[%emt 0:00:23]} 37. Ke3 {[%emt 0:01:00]} Nf5+ {[%emt 0:00:59]} 38. Kd2 {[%emt 0:00:42]} Nh4 {[%emt 0:01:51]} 39. Ne1 {[%emt 0:01:19]} Nf5 {[%emt 0:01:50]} 40. Nf3 {[%emt 0:00:02]} h6 {[%emt 0:00:31] Prevents Ng5+.} 41. Kd3 {[%emt 0:00:07]} Nd6 {[%emt 0:01:53]} 42. Ne4 {[%emt 0:00:15]} Nxe4 {[%emt 0:00:51]} 43. Kxe4 {[%emt 0:00:03]} Nf6+ {[%emt 0:00:23]} 44. Ke3 {[%emt 0:00:06]} Nd5+ {[%emt 0:00:37]} 45. Ke4 {[%emt 0:00:34]} Nf6+ {[%emt 0:00:08]} 46. Ke3 {[%emt 0:00:36]} Nd5+ {[%emt 0:00:10]} 47. Ke4 {[%emt 0:01:46] Weighted Error Value: White=0.11 (very precise) /Black=0.08 (flawless)} 1/2-1/2

[Event "12th WLC Weekend 2022"]
[Site "Eindhoven"]
[Date "2022.05.13"]
[Round "1.25"]
[White "Van der Velden, Alain"]
[Black "Smit, Maarten"]
[Result "1-0"]
[ECO "D45"]
[WhiteElo "1659"]
[BlackElo "2056"]
[Annotator "TA"]
[PlyCount "125"]
[EventDate "2022.05.13"]
[EventType "swiss"]
[EventCountry "NED"]
[SourceTitle "playchess.com"]
[Source "ChessBase"]
[SourceQuality "1"]
[TimeControl "5400+30"]

{[%evp 12,125,20,15,14,12,10,6,74,56,62,14,154,58,62,61,49,57,92,0,87,11,37,0,0,0,56,0,0,-72,-89,-70,-47,-56,-79,-85,-86,-130,-7,-49,-35,-20,0,0,49,50,52,0,0,0,0,-81,274,472,363,138,777,749,739,735,736,728,728,691,1383,1375,1339,1078,1311,1376,1111,995,2004,1426,2226,2116,1810,1563,1345,1289,2568,2264,11468,10095,5816,6621,5745,5445,2541,2253,29978,29979,29979,29978,29976,29976,29975,29966,29963,29966,29949,12743,4133,70,29970,29970,29966,0,0,0,0,0,0,-5057,29980,29981]} 1. d4 {[%emt 0:00:03]} c6 {[%emt 0:00:07]} 2. c4 {[%emt 0:00:09]} d5 {[%emt 0:00:06]} 3. Nc3 {[%emt 0:00:12]} Nf6 {[%emt 0:00:07]} 4. Nf3 {[%emt 0:00:06]} e6 {[%emt 0:00:19]} 5. e3 {[%emt 0:00:10]} Nbd7 {[%emt 0:01:13]} 6. Qc2 {[%emt 0:00:06]} Be7 {[%emt 0:00:31]} 7. g4 {[%emt 0:00:23]} h6 {[%emt 0:14:24] D45: Semi-Slav: 5 e3.} 8. Rg1 {[%emt 0:05:12]} dxc4 {[%emt 0:05:38]} 9. Bxc4 {[%emt 0:01:55]} Nb6 {[%emt 0:06:47]} (9... b5 $11 10. Bxe6 fxe6) 10. Be2 $16 {[%emt 0:05:31]} Nbd5 {[%emt 0:05:00] [#]} 11. g5 $146 {[%emt 0:05:38]} (11. h4 $14) ({Predecessor:} 11. h4 Nxc3 12. bxc3 Nd7 13. g5 hxg5 14. hxg5 g6 15. Bb2 Qa5 16. Bd3 Rg8 17. Ke2 {1-0 (40) Czerwonski,A (2390)-Sarbok,T (2362) Marianske Lazne 2005}) 11... Nd7 {[%emt 0:08:55]} (11... hxg5 $11 {keeps the balance.} 12. Rxg5 Kf8) 12. g6 {[%emt 0:04:34]} (12. gxh6 $16 gxh6 13. Bd2) 12... f6 {[%emt 0:02:55]} 13. e4 {[%emt 0:03:05]} Nxc3 {[%emt 0:01:02]} 14. bxc3 {[%emt 0:00:19]} Bd6 {[%emt 0:04:33]} 15. Bc4 {[%emt 0:06:17]} (15. a4 $16) 15... Qe7 {[%emt 0:01:32] [#]} (15... Nb6 $11 16. Bb3 c5) 16. Be3 {[%emt 0:07:31] White is more active.} (16. a4 $1 $16) 16... b5 {[%emt 0:09:15]} 17. Bb3 {[%emt 0:02:33]} a5 {[%emt 0:00:14] aiming for ...a4.} 18. a4 {[%emt 0:02:39]} b4 {[%emt 0:03:31]} (18... Nb6 $1 $11) 19. Qa2 {[%emt 0:12:38]} ({Better is} 19. Kf1 $14) 19... Nb6 $1 $11 {[%emt 0:19:27]} 20. e5 {[%emt 0:17:41]} (20. cxb4 $11 Bxb4+ 21. Kf1) 20... fxe5 $17 {[%emt 0:00:02]} 21. dxe5 {[%emt 0:00:24]} Bc5 {[%emt 0:01:02] ...Bxe3 is the strong threat.} 22. Nd4 {[%emt 0:11:18]} Bxd4 {[%emt 0:00:41]} 23. cxd4 {[%emt 0:00:26]} Nd5 {[%emt 0:00:30]} 24. Rc1 {[%emt 0:03:19]} Bb7 {[%emt 0:03:17]} (24... Nc3 $17 25. Qd2 Qh4) 25. Rc5 {[%emt 0:01:11]} O-O {[%emt 0:00:24] And now ...Qh4 would win.} 26. Qe2 {[%emt 0:01:29]} Qh4 {[%emt 0:01:17]} 27. Qg4 {[%emt 0:01:10] The board is on fire.} Qxg4 {[%emt 0:02:11]} (27... Qxh2 $11 {deserves consideration.} 28. Rg2 Qh1+ 29. Rg1 Qh2) 28. Rxg4 $14 {[%emt 0:00:09]} Rf3 {[%emt 0:01:47]} 29. Ke2 {[%emt 0:00:43]} (29. Kd2 $14) 29... Rh3 $11 {[%emt 0:00:10]} 30. Bxd5 {[%emt 0:02:03]} cxd5 {[%emt 0:00:43]} 31. Rf4 {[%emt 0:00:44] [#]} (31. Kd2 $11) 31... Rc8 $2 {[%emt 0:03:36][%mdl 8192]} ({Don't play} 31... Rxh2 $6 32. Rf7 Ba6+ 33. Kf3 $11) (31... Ba6+ $1 $17 {stays on course.} 32. Kd2 Rxh2 33. Rxa5 Rg2) 32. Rf7 $18 {[%emt 0:02:18]} Ba6+ {[%emt 0:00:39]} 33. Kd2 $2 {[%emt 0:00:16]} (33. Kd1 $18 {is the precise move to win.}) 33... Rf8 $2 {[%emt 0:00:44][%mdl 8192]} (33... Rxh2 $2 34. Ra7 Kf8 35. Rxa6 $18) (33... Rxc5 $16 34. dxc5 d4) 34. Rxa5 {[%emt 0:00:36]} Bc4 {[%emt 0:00:24]} 35. Rxf8+ {[%emt 0:01:20]} Kxf8 {[%emt 0:00:01][%mdl 4096] Endgame KRB-KRB} 36. Ra8+ {[%emt 0:00:03]} Ke7 {[%emt 0:00:11]} 37. Ra7+ {[%emt 0:00:10]} Kf8 {[%emt 0:00:10]} 38. a5 {[%emt 0:00:10]} Rxh2 {[%emt 0:00:10]} 39. a6 {[%emt 0:01:26] Intending Rf7+ and mate.} Bxa6 {[%emt 0:00:36]} 40. Rxa6 {[%emt 0:00:08] KRB-KR} Rg2 {[%emt 0:00:06]} 41. Rxe6 {[%emt 0:00:15]} h5 {[%emt 0:00:03]} 42. Rb6 {[%emt 0:02:02]} h4 {[%emt 0:00:06]} 43. Rxb4 {[%emt 0:00:07]} Rxg6 {[%emt 0:00:07]} 44. Rb8+ {[%emt 0:00:09]} Kf7 {[%emt 0:00:11]} 45. Rh8 {[%emt 0:00:18]} Rg4 {[%emt 0:00:05]} 46. Ke2 {[%emt 0:00:43]} g5 {[%emt 0:00:13]} 47. Kf3 {[%emt 0:00:46]} Rg1 {[%emt 0:00:07] [#]} 48. Bxg5 $1 {[%emt 0:00:48]} Rxg5 {[%emt 0:00:09]} 49. Rxh4 {[%emt 0:00:35] KR-KR} Rg1 {[%emt 0:00:05]} 50. Rh7+ {[%emt 0:00:33]} Ke8 {[%emt 0:00:35]} 51. Kf4 {[%emt 0:01:48]} Rd1 {[%emt 0:00:02]} 52. Kf5 {[%emt 0:00:29]} Rxd4 {[%emt 0:00:05]} 53. Ke6 {[%emt 0:00:06][%cal Rh7h8]} Kf8 {[%emt 0:00:11]} 54. Kd7 {[%emt 0:01:28]} Ra4 {[%emt 0:00:29]} 55. Rh8+ {[%emt 0:00:41]} Kg7 {[%emt 0:00:02]} 56. Rd8 {[%emt 0:00:41] White wants to mate with e6.} d4 {[%emt 0:00:19]} 57. e6 $2 {[%emt 0:00:08]} (57. Ke8 $18 Ra7 58. Rxd4) 57... Kf6 $2 {[%emt 0:01:35][%mdl 8192]} (57... Ra7+ $14 58. Kd6 d3) 58. Rf8+ {[%emt 0:00:31]} Ke5 {[%emt 0:00:05]} 59. e7 $2 {[%emt 0:00:32]} (59. f4+ {mates} Kd5 60. Ke7 Ke4 61. Kf7 d3 62. e7 Kf3 63. f5 Rf4 64. f6) 59... Ra7+ $11 {[%emt 0:00:03]} 60. Kd8 {[%emt 0:00:45]} Ra8+ {[%emt 0:00:01]} 61. Kd7 {[%emt 0:00:07]} Ra7+ {[%emt 0:00:03]} 62. Ke8 $2 {[%emt 0:00:14][%mdl 8192]} (62. Kd8 $11 Ra8+ 63. Kc7 Ra7+ 64. Kd8) 62... d3 $4 {[%emt 0:00:12][%mdl 8192]} (62... Ke6 $19 63. Kd8 Rxe7) 63. Kf7 {[%emt 0:00:30] Weighted Error Value: White=0.39/Black=0.56} 1-0

[Event "12th WLC Weekend 2022"]
[Site "Eindhoven"]
[Date "2022.05.13"]
[Round "1.26"]
[White "Straat, Evert-Jan"]
[Black "Oskam, Julian"]
[Result "1/2-1/2"]
[ECO "D35"]
[WhiteElo "2034"]
[BlackElo "1627"]
[Annotator "TA"]
[PlyCount "41"]
[EventDate "2022.05.13"]
[EventType "swiss"]
[EventCountry "NED"]
[SourceTitle "playchess.com"]
[Source "ChessBase"]
[SourceQuality "1"]
[TimeControl "5400+30"]

{[%evp 11,41,14,14,9,30,0,20,-2,0,-6,0,-15,-16,-14,-12,-12,-2,-7,-18,-8,-22,-39,-5,-8,41,34,30,27,37,28,30,22]} 1. d4 {[%emt 0:00:03]} Nf6 {[%emt 0:00:08]} 2. c4 {[%emt 0:00:12]} e6 {[%emt 0:00:24]} 3. Nc3 {[%emt 0:00:20]} d5 {[%emt 0:00:12]} 4. Bg5 {[%emt 0:00:16]} Be7 {[%emt 0:01:33]} 5. cxd5 {[%emt 0:01:00]} exd5 {[%emt 0:02:14]} 6. e3 {[%emt 0:00:44]} h6 {[%emt 0:04:11]} 7. Bf4 {[%emt 0:03:02] D35: Queen's Gambit Declined: Exchange Variation.} Bd6 {[%emt 0:05:59]} 8. Bg3 {[%emt 0:02:43] [#]} Bf5 $146 {[%emt 0:05:48]} ({Predecessor:} 8... O-O 9. Bd3 Re8 10. Qc2 c6 11. Nf3 Bxg3 12. hxg3 a5 13. Ne5 Ng4 14. Nf3 Na6 15. a3 Nc7 {1-0 (46) Martirosyan,H (2633)-Urazayev,A (2438) Chess.com INT 2022}) 9. Nf3 {[%emt 0:03:56] The position is equal.} Bxg3 {[%emt 0:01:23]} 10. hxg3 {[%emt 0:00:15]} c6 {[%emt 0:03:58]} 11. Bd3 {[%emt 0:02:00]} Bxd3 {[%emt 0:06:52]} 12. Qxd3 {[%emt 0:00:06]} Qe7 {[%emt 0:00:42]} 13. O-O-O {[%emt 0:03:56]} Ne4 {[%emt 0:03:25]} 14. Qc2 {[%emt 0:02:06]} Nxc3 {[%emt 0:00:25]} 15. Qxc3 {[%emt 0:00:25]} Nd7 {[%emt 0:01:07]} 16. Kb1 {[%emt 0:02:02]} Nb6 {[%emt 0:11:05]} 17. Ka1 {[%emt 0:02:59]} Nc4 {[%emt 0:06:14]} (17... O-O-O $11) 18. e4 $14 {[%emt 0:02:40] [#] aiming for exd5.} Nb6 {[%emt 0:04:55]} 19. e5 {[%emt 0:18:58]} O-O-O {[%emt 0:04:39]} 20. Nd2 {[%emt 0:05:59]} Kb8 {[%emt 0:04:34]} 21. f4 {[%emt 0:00:13] Weighted Error Value: White=0.08 (flawless) /Black=0.10 (very precise)} 1/2-1/2